[Event "*** Titled Tuesday Blitz"]
[Site "Chess.com"]
[Date "2019.08.06"]
[Round "2"]
[White "adriangschnitzer"]
[Black "Oleg_Papayan"]
[Result "0-1"]
[WhiteElo "2564"]
[BlackElo "2528"]
[TimeControl "180+2"]
[EndTime "13:23:48 PDT"]
[Termination "Oleg_Papayan won by resignation"]

1. d4 {[%clk 0:03:01.9]} 1... Nf6 {[%clk 0:02:59.2]} 2. g3 {[%clk 0:03:02.4]}
2... c5 {[%clk 0:02:57.8]} 3. dxc5 {[%clk 0:03:02.8]} 3... Na6 {[%clk
0:02:57.7]} 4. Bg2 {[%clk 0:03:03.3]} 4... Nxc5 {[%clk 0:02:58.4]} 5. Nc3 {[%clk
0:03:03.9]} 5... d6 {[%clk 0:02:53.9]} 6. e4 {[%clk 0:03:04]} 6... g6 {[%clk
0:02:54.4]} 7. Nge2 {[%clk 0:03:04.1]} 7... Bg7 {[%clk 0:02:55.3]} 8. h3 {[%clk
0:03:03]} 8... O-O {[%clk 0:02:56.1]} 9. O-O {[%clk 0:03:02.7]} 9... a6 {[%clk
0:02:56.7]} 10. a4 {[%clk 0:03:00.1]} 10... a5 {[%clk 0:02:38.3]} 11. Be3 {[%clk
0:02:54.9]} 11... Be6 {[%clk 0:02:33.2]} 12. Re1 {[%clk 0:02:36.8]} 12... Rc8
{[%clk 0:02:33.1]} 13. g4 {[%clk 0:02:32.1]} 13... Nfd7 {[%clk 0:02:30.7]} 14.
f4 {[%clk 0:02:29.9]} 14... Bc4 {[%clk 0:02:28.6]} 15. Bd4 {[%clk 0:02:22.9]}
15... Bxe2 {[%clk 0:02:17.9]} 16. Nxe2 {[%clk 0:02:19.5]} 16... Ne6 {[%clk
0:02:18.4]} 17. Bxg7 {[%clk 0:02:17.5]} 17... Kxg7 {[%clk 0:02:20.3]} 18. Kh2
{[%clk 0:02:12.1]} 18... Qb6 {[%clk 0:02:20.9]} 19. b3 {[%clk 0:01:59.1]} 19...
Qe3 {[%clk 0:02:13.1]} 20. Qc1 {[%clk 0:01:49.2]} 20... Qf2 {[%clk 0:02:04.9]}
21. Qd2 {[%clk 0:01:46.8]} 21... g5 {[%clk 0:01:48.2]} 22. Rf1 {[%clk
0:01:40.6]} 22... Qc5 {[%clk 0:01:45.6]} 23. f5 {[%clk 0:01:38.1]} 23... Nf4
{[%clk 0:01:38]} 24. Nxf4 {[%clk 0:01:38.9]} 24... gxf4 {[%clk 0:01:39.3]} 25.
c4 {[%clk 0:01:14.3]} 25... Qe3 {[%clk 0:01:09.4]} 26. Qb2+ {[%clk 0:01:04.8]}
26... Ne5 {[%clk 0:01:09.8]} 27. Rae1 {[%clk 0:00:26.1]} 27... Qg3+ {[%clk
0:01:10.5]} 28. Kh1 {[%clk 0:00:26.3]} 28... f6 {[%clk 0:01:00.8]} 29. Qe2
{[%clk 0:00:07]} 29... Qxb3 {[%clk 0:00:54.8]} 30. Rxf4 {[%clk 0:00:08.1]} 30...
Rxc4 {[%clk 0:00:52.8]} 31. g5 {[%clk 0:00:08.8]} 31... fxg5 {[%clk 0:00:51.7]}
32. Rf2 {[%clk 0:00:08.4]} 32... h6 {[%clk 0:00:30.6]} 33. Qh5 {[%clk
0:00:09.3]} 33... Rf6 {[%clk 0:00:26.7]} 34. Rg1 {[%clk 0:00:09.2]} 34... Rc3
{[%clk 0:00:24.7]} 35. Bf1 {[%clk 0:00:08.8]} 35... Rf3 {[%clk 0:00:20.2]} 36.
Rh2 {[%clk 0:00:04.3]} 36... Qf7 {[%clk 0:00:19.2]} 37. Qxf7+ {[%clk 0:00:04.1]}
37... Kxf7 {[%clk 0:00:20.5]} 38. h4 {[%clk 0:00:05.8]} 38... gxh4 {[%clk
0:00:20.1]} 39. Rxh4 {[%clk 0:00:07.7]} 39... Ra3 {[%clk 0:00:19.3]} 40. Bb5
{[%clk 0:00:06.7]} 40... Rc3 {[%clk 0:00:18.4]} 41. Rf1 {[%clk 0:00:04.4]} 41...
Rc8 {[%clk 0:00:11.5]} 42. Rh2 {[%clk 0:00:05.8]} 42... e6 {[%clk 0:00:11.9]}
43. Rg2 {[%clk 0:00:06.6]} 43... exf5 {[%clk 0:00:13]} 44. exf5 {[%clk
0:00:08.5]} 44... Rg8 {[%clk 0:00:13.6]} 45. Rxg8 {[%clk 0:00:09.1]} 45... Kxg8
{[%clk 0:00:15.5]} 46. Rc1 {[%clk 0:00:07.7]} 46... Rxf5 {[%clk 0:00:16.1]} 47.
Rc8+ {[%clk 0:00:08.8]} 47... Kg7 {[%clk 0:00:17]} 48. Rc7+ {[%clk 0:00:10.2]}
48... Rf7 {[%clk 0:00:18.6]} 49. Rc8 {[%clk 0:00:11.7]} 49... Kf6 {[%clk
0:00:19.9]} 50. Ra8 {[%clk 0:00:11.8]} 50... Rg7 {[%clk 0:00:15.2]} 51. Rxa5
{[%clk 0:00:12.6]} 51... Nf3 {[%clk 0:00:16.9]} 0-1

[Event "*** Titled Tuesday Blitz"]
[Site "Chess.com"]
[Date "2019.08.06"]
[Round "2"]
[White "SmoothAsAHedgehog"]
[Black "GadimbayliA"]
[Result "0-1"]
[WhiteElo "2621"]
[BlackElo "2889"]
[TimeControl "180+2"]
[EndTime "13:23:54 PDT"]
[Termination "GadimbayliA won by checkmate"]

1. c4 {[%clk 0:03:01.9]} 1... e5 {[%clk 0:03:00.2]} 2. Nc3 {[%clk 0:02:58.1]}
2... Nf6 {[%clk 0:03:01]} 3. g3 {[%clk 0:02:58.1]} 3... d5 {[%clk 0:03:02.1]} 4.
cxd5 {[%clk 0:02:58.7]} 4... Nxd5 {[%clk 0:03:04]} 5. Bg2 {[%clk 0:03:00.3]}
5... Nb6 {[%clk 0:03:05.2]} 6. Nf3 {[%clk 0:03:00.8]} 6... Nc6 {[%clk
0:03:06.4]} 7. O-O {[%clk 0:02:58.7]} 7... Be7 {[%clk 0:03:06.9]} 8. a3 {[%clk
0:02:57.9]} 8... O-O {[%clk 0:03:04.3]} 9. b4 {[%clk 0:02:56.2]} 9... Be6 {[%clk
0:03:05.5]} 10. Bb2 {[%clk 0:02:55.1]} 10... f6 {[%clk 0:03:04.9]} 11. d3 {[%clk
0:02:54.1]} 11... a5 {[%clk 0:03:02.3]} 12. b5 {[%clk 0:02:54.6]} 12... Nd4
{[%clk 0:03:03.8]} 13. Nxd4 {[%clk 0:02:51.5]} 13... exd4 {[%clk 0:03:05.7]} 14.
Ne4 {[%clk 0:02:49.5]} 14... a4 {[%clk 0:02:41.3]} 15. Qc1 {[%clk 0:02:35.2]}
15... Bd5 {[%clk 0:02:15.8]} 16. Nd2 {[%clk 0:02:05.9]} 16... Bxg2 {[%clk
0:02:10.9]} 17. Kxg2 {[%clk 0:02:06]} 17... Ra5 {[%clk 0:01:36.4]} 18. Nf3
{[%clk 0:02:03.8]} 18... Rxb5 {[%clk 0:01:28.2]} 19. Bxd4 {[%clk 0:02:04.1]}
19... c5 {[%clk 0:01:24.3]} 20. Be3 {[%clk 0:02:00]} 20... Qd5 {[%clk
0:01:18.9]} 21. Rb1 {[%clk 0:01:56.6]} 21... Rb3 {[%clk 0:01:19.4]} 22. Kg1
{[%clk 0:01:49.4]} 22... Qe6 {[%clk 0:00:45.6]} 23. Nd2 {[%clk 0:01:33.7]} 23...
Rxb1 {[%clk 0:00:43.5]} 24. Qxb1 {[%clk 0:01:35.6]} 24... Nd5 {[%clk 0:00:44.7]}
25. Nc4 {[%clk 0:01:25.5]} 25... Qa6 {[%clk 0:00:38.4]} 26. Bd2 {[%clk
0:01:21.1]} 26... b5 {[%clk 0:00:37.1]} 27. Ne3 {[%clk 0:01:21.9]} 27... Nxe3
{[%clk 0:00:36.1]} 28. Bxe3 {[%clk 0:01:23.8]} 28... b4 {[%clk 0:00:37.5]} 29.
Rc1 {[%clk 0:01:24.5]} 29... Qb5 {[%clk 0:00:34.5]} 30. d4 {[%clk 0:01:05.3]}
30... cxd4 {[%clk 0:00:26.1]} 31. Bxd4 {[%clk 0:01:07.2]} 31... b3 {[%clk
0:00:27.6]} 32. Bb2 {[%clk 0:01:07.6]} 32... Re8 {[%clk 0:00:26.2]} 33. e3
{[%clk 0:01:01.3]} 33... Bf8 {[%clk 0:00:27.1]} 34. Rd1 {[%clk 0:00:55]} 34...
Rc8 {[%clk 0:00:25.1]} 35. Qe4 {[%clk 0:00:53.8]} 35... Qc4 {[%clk 0:00:23.1]}
36. Qf5 {[%clk 0:00:36.4]} 36... Qc2 {[%clk 0:00:19.3]} 37. Qe6+ {[%clk
0:00:36.6]} 37... Kh8 {[%clk 0:00:20.2]} 38. Rc1 {[%clk 0:00:32.7]} 38... Qxc1+
{[%clk 0:00:17.9]} 39. Bxc1 {[%clk 0:00:34.4]} 39... Rxc1+ {[%clk 0:00:19.8]}
40. Kg2 {[%clk 0:00:36]} 40... b2 {[%clk 0:00:07.8]} 41. Qe8 {[%clk 0:00:18.9]}
41... h6 {[%clk 0:00:06.2]} 42. Qxf8+ {[%clk 0:00:17.4]} 42... Kh7 {[%clk
0:00:07.6]} 43. Qe8 {[%clk 0:00:11.6]} 43... b1=Q {[%clk 0:00:07.9]} 44. e4
{[%clk 0:00:13.5]} 44... Rg1+ {[%clk 0:00:06.9]} 45. Kh3 {[%clk 0:00:14.7]}
45... Qf1+ {[%clk 0:00:07.9]} 46. Kh4 {[%clk 0:00:14.9]} 46... Qxf2 {[%clk
0:00:09.2]} 47. h3 {[%clk 0:00:12]} 47... Qxg3+ {[%clk 0:00:10.1]} 48. Kh5
{[%clk 0:00:12.4]} 48... Qg5# {[%clk 0:00:12]} 0-1

[Event "*** Titled Tuesday Blitz"]
[Site "Chess.com"]
[Date "2019.08.06"]
[Round "2"]
[White "2nd_life"]
[Black "Tiqr777"]
[Result "1/2-1/2"]
[WhiteElo "2435"]
[BlackElo "2554"]
[TimeControl "180+2"]
[EndTime "13:23:56 PDT"]
[Termination "Game drawn by agreement"]

1. e4 {[%clk 0:03:01.9]} 1... g6 {[%clk 0:03:00.5]} 2. d4 {[%clk 0:03:02.2]}
2... Bg7 {[%clk 0:03:01]} 3. Nf3 {[%clk 0:03:00.8]} 3... d6 {[%clk 0:03:02.1]}
4. Bc4 {[%clk 0:02:58.8]} 4... e6 {[%clk 0:03:03.2]} 5. Bb3 {[%clk 0:02:58.9]}
5... Ne7 {[%clk 0:03:04.3]} 6. c3 {[%clk 0:02:59.1]} 6... Nd7 {[%clk 0:03:05.3]}
7. h4 {[%clk 0:02:57.4]} 7... h6 {[%clk 0:03:05.7]} 8. a4 {[%clk 0:02:57.4]}
8... a5 {[%clk 0:03:05]} 9. Bf4 {[%clk 0:02:49.1]} 9... b6 {[%clk 0:03:05.8]}
10. Nbd2 {[%clk 0:02:48.1]} 10... Bb7 {[%clk 0:03:07.1]} 11. Qe2 {[%clk
0:02:48.2]} 11... d5 {[%clk 0:02:53.3]} 12. Bc2 {[%clk 0:02:43.6]} 12... dxe4
{[%clk 0:02:51.9]} 13. Bxe4 {[%clk 0:02:35.2]} 13... Qc8 {[%clk 0:02:52.8]} 14.
Ne5 {[%clk 0:02:26.5]} 14... Bxe4 {[%clk 0:02:27.5]} 15. Nxe4 {[%clk 0:02:22.6]}
15... Nd5 {[%clk 0:02:27.6]} 16. Bg3 {[%clk 0:01:56.4]} 16... Nxe5 {[%clk
0:02:26.3]} 17. Bxe5 {[%clk 0:01:56.8]} 17... f6 {[%clk 0:02:21.9]} 18. Bh2
{[%clk 0:01:34.4]} 18... f5 {[%clk 0:02:21.2]} 19. Nd2 {[%clk 0:01:32.3]} 19...
O-O {[%clk 0:02:13.1]} 20. O-O {[%clk 0:01:27.3]} 20... Qd7 {[%clk 0:02:03.4]}
21. Rfe1 {[%clk 0:01:26.5]} 21... Rae8 {[%clk 0:02:04]} 22. Nc4 {[%clk
0:01:26.8]} 22... f4 {[%clk 0:01:59.8]} 23. Qg4 {[%clk 0:01:20.1]} 23... Qf7
{[%clk 0:01:58.2]} 24. Ne5 {[%clk 0:01:08.2]} 24... Bxe5 {[%clk 0:01:44.8]} 25.
Rxe5 {[%clk 0:01:10.1]} 25... h5 {[%clk 0:01:24.1]} 26. Qf3 {[%clk 0:00:46.8]}
26... Qf6 {[%clk 0:01:22.1]} 27. Rae1 {[%clk 0:00:46.1]} 27... Qxh4 {[%clk
0:01:15]} 28. Rxe6 {[%clk 0:00:45.5]} 28... Rxe6 {[%clk 0:01:13.1]} 29. Rxe6
{[%clk 0:00:47.4]} 29... Rf5 {[%clk 0:01:09.5]} 30. Qe4 {[%clk 0:00:23.3]} 30...
Nf6 {[%clk 0:01:10.3]} 31. Qc6 {[%clk 0:00:15.8]} 31... Kf7 {[%clk 0:01:04]} 32.
Re5 {[%clk 0:00:14.1]} 32... Rxe5 {[%clk 0:00:46.7]} 33. dxe5 {[%clk 0:00:14.8]}
33... Ng4 {[%clk 0:00:48.1]} 34. e6+ {[%clk 0:00:10.3]} 34... Ke7 {[%clk
0:00:46.7]} 35. Qxc7+ {[%clk 0:00:10.8]} 35... Kxe6 {[%clk 0:00:48]} 36. Qxf4
{[%clk 0:00:12]} 36... Qxh2+ {[%clk 0:00:36]} 37. Qxh2 {[%clk 0:00:13]} 37...
Nxh2 {[%clk 0:00:37.7]} 38. Kxh2 {[%clk 0:00:14.9]} 38... Kd5 {[%clk 0:00:39.3]}
39. Kh3 {[%clk 0:00:14.6]} 39... g5 {[%clk 0:00:25]} 40. g3 {[%clk 0:00:14.3]}
40... Ke4 {[%clk 0:00:26.3]} 41. b4 {[%clk 0:00:11.8]} 41... Kf3 {[%clk
0:00:25.1]} 42. bxa5 {[%clk 0:00:11.9]} 42... bxa5 {[%clk 0:00:26.6]} 43. c4
{[%clk 0:00:07.1]} 43... Ke4 {[%clk 0:00:27.8]} 44. c5 {[%clk 0:00:05]} 44...
Kd5 {[%clk 0:00:28.7]} 45. f3 {[%clk 0:00:04]} 45... Kxc5 {[%clk 0:00:29.4]} 46.
f4 {[%clk 0:00:05.2]} 46... gxf4 {[%clk 0:00:28]} 47. gxf4 {[%clk 0:00:07.1]}
47... Kd5 {[%clk 0:00:29.6]} 48. Kh4 {[%clk 0:00:08.5]} 48... Ke4 {[%clk
0:00:31.2]} 49. Kxh5 {[%clk 0:00:09.9]} 49... Kxf4 {[%clk 0:00:32]} 50. Kh4
{[%clk 0:00:11.3]} 50... Ke4 {[%clk 0:00:33.8]} 51. Kg3 {[%clk 0:00:12.7]} 51...
Kd4 {[%clk 0:00:35.4]} 52. Kf2 {[%clk 0:00:14.3]} 52... Kc4 {[%clk 0:00:37]} 53.
Ke1 {[%clk 0:00:16]} 53... Kb3 {[%clk 0:00:38.8]} 54. Kd1 {[%clk 0:00:17.4]}
54... Kxa4 {[%clk 0:00:40.5]} 55. Kc1 {[%clk 0:00:18.8]} 55... Kb3 {[%clk
0:00:42.3]} 56. Kb1 {[%clk 0:00:20]} 56... a4 {[%clk 0:00:44]} 57. Ka1 {[%clk
0:00:20.5]} 1/2-1/2

[Event "*** Titled Tuesday Blitz"]
[Site "Chess.com"]
[Date "2019.08.06"]
[Round "2"]
[White "Frolik67"]
[Black "slowdgehammer"]
[Result "1/2-1/2"]
[WhiteElo "2618"]
[BlackElo "2416"]
[TimeControl "180+2"]
[EndTime "13:23:56 PDT"]
[Termination "Game drawn by stalemate"]

1. e4 {[%clk 0:03:01.9]} 1... c5 {[%clk 0:02:59.5]} 2. d4 {[%clk 0:03:00.8]}
2... cxd4 {[%clk 0:03:00.3]} 3. c3 {[%clk 0:03:01.2]} 3... d5 {[%clk 0:02:59]}
4. exd5 {[%clk 0:03:01.8]} 4... Qxd5 {[%clk 0:02:58.8]} 5. cxd4 {[%clk
0:03:00.8]} 5... Nc6 {[%clk 0:03:00.4]} 6. Nf3 {[%clk 0:03:00]} 6... Bg4 {[%clk
0:03:01.8]} 7. Be2 {[%clk 0:03:01.3]} 7... Nf6 {[%clk 0:02:25.8]} 8. Nc3 {[%clk
0:03:01.9]} 8... Qd8 {[%clk 0:02:20.8]} 9. h3 {[%clk 0:03:00.7]} 9... Bh5 {[%clk
0:02:20.9]} 10. O-O {[%clk 0:03:00.3]} 10... e6 {[%clk 0:02:06.8]} 11. Be3
{[%clk 0:02:42.3]} 11... Be7 {[%clk 0:01:58.1]} 12. Rc1 {[%clk 0:02:41.1]} 12...
a6 {[%clk 0:01:55.9]} 13. Re1 {[%clk 0:02:39.5]} 13... O-O {[%clk 0:01:39.6]}
14. Qb3 {[%clk 0:02:27.1]} 14... Na5 {[%clk 0:01:32.4]} 15. Qc2 {[%clk
0:02:26.2]} 15... Rc8 {[%clk 0:01:32]} 16. a3 {[%clk 0:02:25.7]} 16... Nc4
{[%clk 0:01:29]} 17. Bxc4 {[%clk 0:02:22.4]} 17... Rxc4 {[%clk 0:01:30.9]} 18.
Qb3 {[%clk 0:02:20.8]} 18... b5 {[%clk 0:01:24.9]} 19. Ne5 {[%clk 0:02:21]}
19... Rc8 {[%clk 0:01:24.1]} 20. f3 {[%clk 0:02:15.2]} 20... Bg6 {[%clk
0:01:13.5]} 21. Bf2 {[%clk 0:02:12.2]} 21... Re8 {[%clk 0:01:05.5]} 22. Red1
{[%clk 0:02:05.4]} 22... Bd6 {[%clk 0:00:56.2]} 23. Ne2 {[%clk 0:01:47.8]} 23...
Nd5 {[%clk 0:00:23]} 24. Nc3 {[%clk 0:01:34.2]} 24... Nf4 {[%clk 0:00:21.5]} 25.
Be3 {[%clk 0:01:34.1]} 25... Qg5 {[%clk 0:00:17.6]} 26. Bxf4 {[%clk 0:01:30.2]}
26... Qxf4 {[%clk 0:00:19.5]} 27. Ne2 {[%clk 0:01:30.2]} 27... Qg5 {[%clk
0:00:19]} 28. f4 {[%clk 0:01:17.5]} 28... Qf5 {[%clk 0:00:20]} 29. Qe3 {[%clk
0:01:05.2]} 29... Qe4 {[%clk 0:00:18.7]} 30. Kf2 {[%clk 0:00:59.4]} 30... Qd5
{[%clk 0:00:17.4]} 31. Nc3 {[%clk 0:00:55.3]} 31... Qb7 {[%clk 0:00:18.8]} 32.
g3 {[%clk 0:00:48.5]} 32... b4 {[%clk 0:00:19.9]} 33. axb4 {[%clk 0:00:48.8]}
33... Bxb4 {[%clk 0:00:20.6]} 34. Qf3 {[%clk 0:00:46]} 34... Qb6 {[%clk
0:00:18.5]} 35. Nxg6 {[%clk 0:00:45.2]} 35... hxg6 {[%clk 0:00:18.9]} 36. Qe3
{[%clk 0:00:39.5]} 36... Be7 {[%clk 0:00:19.9]} 37. Rc2 {[%clk 0:00:29.7]} 37...
Red8 {[%clk 0:00:21.2]} 38. Rcd2 {[%clk 0:00:30.8]} 38... Rd7 {[%clk 0:00:21.8]}
39. d5 {[%clk 0:00:30.1]} 39... Bc5 {[%clk 0:00:22.5]} 40. Rd4 {[%clk
0:00:29.7]} 40... exd5 {[%clk 0:00:21]} 41. Qe5 {[%clk 0:00:22.6]} 41... Qxb2+
{[%clk 0:00:21.4]} 42. Ne2 {[%clk 0:00:19.8]} 42... Bxd4+ {[%clk 0:00:21.2]} 43.
Rxd4 {[%clk 0:00:21.7]} 43... Rdd8 {[%clk 0:00:18.9]} 44. Kf3 {[%clk 0:00:22.3]}
44... Qb3+ {[%clk 0:00:18.5]} 45. Kg4 {[%clk 0:00:23.1]} 45... Re8 {[%clk
0:00:20.1]} 46. Qd6 {[%clk 0:00:19.1]} 46... Rxe2 {[%clk 0:00:20]} 47. Rxd5
{[%clk 0:00:21]} 47... Qe3 {[%clk 0:00:16.1]} 48. Qd7 {[%clk 0:00:21.5]} 48...
Qe6+ {[%clk 0:00:16.8]} 49. Kh4 {[%clk 0:00:21.8]} 49... Qxd7 {[%clk 0:00:17]}
50. Rxd7 {[%clk 0:00:23.7]} 50... Ra2 {[%clk 0:00:17.3]} 51. Ra7 {[%clk
0:00:24.9]} 51... a5 {[%clk 0:00:18.5]} 52. g4 {[%clk 0:00:26.8]} 52... a4
{[%clk 0:00:19.3]} 53. f5 {[%clk 0:00:28.7]} 53... gxf5 {[%clk 0:00:20]} 54.
gxf5 {[%clk 0:00:30.6]} 54... a3 {[%clk 0:00:21.6]} 55. Kh5 {[%clk 0:00:31.8]}
55... Ra1 {[%clk 0:00:21.5]} 56. f6 {[%clk 0:00:33]} 56... gxf6 {[%clk
0:00:21.6]} 57. h4 {[%clk 0:00:33.9]} 57... a2 {[%clk 0:00:22.7]} 58. Kh6 {[%clk
0:00:35.5]} 58... Rb8 {[%clk 0:00:19.7]} 59. h5 {[%clk 0:00:36.7]} 59... Rg1
{[%clk 0:00:20]} 60. Ra8 {[%clk 0:00:37.5]} 60... Rb1 {[%clk 0:00:18.9]} 61.
Rxb8+ {[%clk 0:00:37]} 61... Rxb8 {[%clk 0:00:14]} 1/2-1/2

[Event "*** Titled Tuesday Blitz"]
[Site "Chess.com"]
[Date "2019.08.06"]
[Round "2"]
[White "Jbd735"]
[Black "M1711"]
[Result "0-1"]
[WhiteElo "2416"]
[BlackElo "2518"]
[TimeControl "180+2"]
[EndTime "13:24:00 PDT"]
[Termination "M1711 won by checkmate"]

1. e4 {[%clk 0:03:01.9]} 1... c5 {[%clk 0:02:57.7]} 2. Nf3 {[%clk 0:03:02.6]}
2... e6 {[%clk 0:02:58.9]} 3. d3 {[%clk 0:03:03]} 3... Nc6 {[%clk 0:02:58.4]} 4.
g3 {[%clk 0:03:03.4]} 4... g6 {[%clk 0:02:59.4]} 5. Bg2 {[%clk 0:03:04.5]} 5...
Bg7 {[%clk 0:02:59.5]} 6. O-O {[%clk 0:03:05.5]} 6... Nge7 {[%clk 0:03:00.5]} 7.
Re1 {[%clk 0:03:06.4]} 7... d6 {[%clk 0:02:52.8]} 8. Nbd2 {[%clk 0:03:07.3]}
8... O-O {[%clk 0:02:53.6]} 9. Rb1 {[%clk 0:03:04.9]} 9... e5 {[%clk 0:02:51]}
10. Nc4 {[%clk 0:02:48]} 10... h6 {[%clk 0:02:46.8]} 11. c3 {[%clk 0:02:41]}
11... Be6 {[%clk 0:02:46.7]} 12. b3 {[%clk 0:02:39.3]} 12... f5 {[%clk
0:02:34.1]} 13. Bb2 {[%clk 0:02:28.3]} 13... Qd7 {[%clk 0:01:41.9]} 14. d4
{[%clk 0:02:17]} 14... fxe4 {[%clk 0:01:34.9]} 15. Rxe4 {[%clk 0:02:03.8]} 15...
Bf5 {[%clk 0:01:16.8]} 16. Re1 {[%clk 0:01:42.8]} 16... Bxb1 {[%clk 0:01:12.2]}
17. Qxb1 {[%clk 0:01:44.7]} 17... exd4 {[%clk 0:01:01.8]} 18. cxd4 {[%clk
0:01:44.8]} 18... cxd4 {[%clk 0:00:44.6]} 19. Qd3 {[%clk 0:01:19]} 19... Nf5
{[%clk 0:00:34.5]} 20. g4 {[%clk 0:01:12.9]} 20... Nfe7 {[%clk 0:00:33.9]} 21.
Nxd4 {[%clk 0:01:10.2]} 21... Ne5 {[%clk 0:00:28]} 22. Nxe5 {[%clk 0:00:59.1]}
22... dxe5 {[%clk 0:00:26.2]} 23. Qc4+ {[%clk 0:00:59.9]} 23... Kh8 {[%clk
0:00:25.6]} 24. Nf3 {[%clk 0:00:47.2]} 24... Rf4 {[%clk 0:00:24.1]} 25. Nxe5
{[%clk 0:00:28.4]} 25... Qd2 {[%clk 0:00:04.7]} 26. Nf3 {[%clk 0:00:03.9]} 26...
Qxe1+ {[%clk 0:00:04.6]} 27. Nxe1 {[%clk 0:00:03.9]} 27... Rxc4 {[%clk
0:00:06.5]} 28. Bxg7+ {[%clk 0:00:04.9]} 28... Kxg7 {[%clk 0:00:08.4]} 29. bxc4
{[%clk 0:00:06.5]} 29... Rc8 {[%clk 0:00:09.9]} 30. Bxb7 {[%clk 0:00:06.9]}
30... Rxc4 {[%clk 0:00:11]} 31. Bf3 {[%clk 0:00:06.6]} 31... Ra4 {[%clk
0:00:09.8]} 32. Kg2 {[%clk 0:00:06.1]} 32... Rxa2 {[%clk 0:00:09.9]} 33. Nd3
{[%clk 0:00:08]} 33... a5 {[%clk 0:00:09.7]} 34. Be4 {[%clk 0:00:08.8]} 34...
Ra4 {[%clk 0:00:09]} 35. Kf3 {[%clk 0:00:09.2]} 35... Rc4 {[%clk 0:00:07.6]} 36.
Ke3 {[%clk 0:00:07.2]} 36... a4 {[%clk 0:00:08.6]} 37. Ne5 {[%clk 0:00:06.2]}
37... Rc8 {[%clk 0:00:05.6]} 38. Kd4 {[%clk 0:00:03.2]} 38... a3 {[%clk
0:00:06.3]} 39. Bb1 {[%clk 0:00:04.1]} 39... Rc1 {[%clk 0:00:06.2]} 40. Ba2
{[%clk 0:00:04.8]} 40... Rc2 {[%clk 0:00:07.1]} 41. Bb3 {[%clk 0:00:05.3]} 41...
Rb2 {[%clk 0:00:07.3]} 42. Be6 {[%clk 0:00:05.6]} 42... a2 {[%clk 0:00:07]} 43.
Bxa2 {[%clk 0:00:06.5]} 43... Rxa2 {[%clk 0:00:08.9]} 44. Nd3 {[%clk 0:00:07.5]}
44... Kf6 {[%clk 0:00:07.1]} 45. h4 {[%clk 0:00:08.3]} 45... g5 {[%clk
0:00:07.4]} 46. h5 {[%clk 0:00:08.6]} 46... Ra4+ {[%clk 0:00:08.3]} 47. Ke3
{[%clk 0:00:09.1]} 47... Rxg4 {[%clk 0:00:09.4]} 48. f3 {[%clk 0:00:10.8]} 48...
Rh4 {[%clk 0:00:10.3]} 49. Kf2 {[%clk 0:00:11.2]} 49... Rxh5 {[%clk 0:00:11.3]}
50. Kg3 {[%clk 0:00:12.5]} 50... Nf5+ {[%clk 0:00:11.6]} 51. Kg2 {[%clk
0:00:12.9]} 51... Rh4 {[%clk 0:00:12.5]} 52. Nf2 {[%clk 0:00:14.2]} 52... Ra4
{[%clk 0:00:12.6]} 53. Ne4+ {[%clk 0:00:15.2]} 53... Rxe4 {[%clk 0:00:11.9]} 54.
fxe4 {[%clk 0:00:15.3]} 54... Nd6 {[%clk 0:00:13.8]} 55. Kf3 {[%clk 0:00:16.5]}
55... Ke5 {[%clk 0:00:14.8]} 56. Kg4 {[%clk 0:00:17.9]} 56... Nxe4 {[%clk
0:00:16.4]} 57. Kh5 {[%clk 0:00:19.1]} 57... Kf5 {[%clk 0:00:17.1]} 58. Kxh6
{[%clk 0:00:20.5]} 58... g4 {[%clk 0:00:18.3]} 59. Kh5 {[%clk 0:00:22.4]} 59...
g3 {[%clk 0:00:18.8]} 60. Kh4 {[%clk 0:00:24.3]} 60... g2 {[%clk 0:00:20]} 61.
Kh3 {[%clk 0:00:26.2]} 61... g1=Q {[%clk 0:00:20.3]} 62. Kh4 {[%clk 0:00:27.6]}
62... Qg4# {[%clk 0:00:22.2]} 0-1